bitfinex-derivatives/quotes_ETHF0:USTF0_20250416
["timestamp","ask_amount","ask_price","bid_price","bid_amount"]
[1744794143176,1.26896,1576.3,1576.2,1.26892]
[1744794143369,3.00936,1576.3,1576.2,1.26892]
[1744794144369,0.00952502,1576.4,1576.3,1.26889]
[1744794144681,3.2078,1577.0,1576.5,3.17177]
[1744794144880,1.26857,1576.7,1576.6,8.1567]
[1744794145067,1.26857,1576.7,1576.6,50.22533]
[1744794146081,3.04040756,1576.8,1576.7,1.26857]
[1744794146280,3.04040756,1576.8,1576.7,2.93437]
[1744794146682,3.04040756,1576.8,1576.7,1.6658]
[1744794147075,3.04040756,1576.8,1576.7,2.93437]
[1744794147386,3.04040756,1576.8,1576.7,1.6658]
[1744794147787,1.77187756,1576.8,1576.7,6.14217]
[1744794148085,1.27476756,1576.8,1576.7,6.14217]
[1744794148286,0.00627756,1576.8,1576.7,6.14217]
[1744794150180,1.27476756,1576.8,1576.7,6.14217]
[1744794150377,0.00627756,1576.8,1576.7,6.14217]
[1744794152179,1.6334,1577.2,1577.1,1.26825]
[1744794152381,1.6627,1577.2,1577.1,1.26825]
[1744794152587,2.93087,1577.2,1577.1,1.26825]
[1744794152790,1.6627,1577.2,1577.1,1.26825]
[1744794152987,1.6627,1577.2,1577.1,2.90915]
[1744794153188,2.93087,1577.2,1577.1,2.90915]
[1744794153384,4.47592,1577.3,1577.2,1.26817]
[1744794153585,6.16932,1577.3,1577.2,2.87297]
[1744794153786,6.16932,1577.3,1577.2,1.6048]
[1744794154283,6.16932,1577.3,1577.2,2.87297]
[1744794154483,2.96152,1577.3,1577.2,2.87297]
[1744794155483,1.6721,1577.4,1577.3,1.26809]
[1744794155484,0.7993,1577.4,1577.3,1.26809]
[1744794155680,2.96135,1577.5,1577.4,1.26801]
[1744794156784,6.15104,1577.7,1577.4,0.8508]
[1744794157091,7.87414,1577.7,1577.6,1.26784]
[1744794157285,1.26817,1577.2,1577.1,3.2078]
[1744794157592,1.26824,1577.2,1577.1,1.26823]
[1744794157885,3.1702,1577.4,1577.0,0.00952502]
[1744794158082,1.26825,1577.1,1577.0,0.00952502]
[1744794158794,1.26825,1577.1,1577.0,1.27785502]
[1744794158989,1.7231,1577.2,1577.1,1.26825]
[1744794159288,0.8544,1577.3,1577.2,1.26817]
[1744794159590,0.8544,1577.3,1577.2,3.76587]
[1744794159983,2.92377,1577.4,1577.3,1.26809]
[1744794160283,2.92377,1577.4,1577.3,1.686]
[1744794160480,1.26809,1577.3,1577.2,2.07981]
[1744794160780,1.6557,1577.3,1577.1,5.6123]
[1744794160980,2.94498,1577.5,1577.2,1.686]
[1744794161187,4.60068,1577.5,1577.4,1.26801]
[1744794161380,2.94498,1577.5,1577.4,1.26801]
[1744794161686,1.26801,1577.4,1577.3,2.95402]
[1744794161988,1.26809,1577.3,1577.2,1.26811]
[1744794162177,1.26809,1577.3,1577.2,2.95411]
[1744794163290,2.94502,1577.5,1577.4,1.26801]
[1744794163688,1.677,1577.5,1577.3,2.95712]
[1744794163886,1.26816,1577.3,1577.2,1.26814]
[1744794164591,1.26817,1577.2,1577.1,9.38082]
[1744794164894,1.26815,1577.3,1577.2,1.26813]
[1744794165292,1.26807,1577.4,1577.3,1.26805]
[1744794165690,2.94498,1577.5,1577.4,1.26801]
[1744794166195,0.51372181,1578.0,1577.3,4.9474]
[1744794166395,3.2078,1578.2,1578.0,1.26745]
[1744794166692,0.8345,1578.3,1578.0,1.26746]
[1744794166895,4.00272,1578.3,1578.1,40.8]
[1744794167193,1.26736,1578.2,1578.1,40.8]
[1744794167591,1.26736,1578.2,1578.1,42.06744]
[1744794168697,1.26736,1578.2,1578.1,40.8]
[1744794168990,6.26736,1578.2,1578.1,40.8]
[1744794169197,1.26752,1578.0,1577.9,4.48492502]
[1744794169791,1.26752,1578.0,1577.9,40.80952502]
[1744794170493,6.26752,1578.0,1577.9,0.00952502]
[1744794170895,1.26793,1577.5,1577.4,1.26797]
[1744794171088,1.26801,1577.4,1577.3,97.15983]
[1744794171292,1.26801,1577.4,1577.3,6.05003]
[1744794171492,1.26801,1577.4,1577.3,46.85003]
[1744794171990,2.99531,1577.4,1577.3,46.85003]
[1744794172895,2.99531,1577.4,1577.3,45.582]
[1744794173199,2.99531,1577.4,1577.3,46.85009]
[1744794173590,2.99531,1577.4,1577.3,42.06809]
[1744794173991,2.99531,1577.4,1577.3,40.8]
[1744794174196,2.99531,1577.4,1577.3,42.06809]
[1744794175100,1.7273,1577.4,1577.3,42.06809]
[1744794175696,0.00952502,1577.5,1577.4,1.26801]
[1744794175902,0.00952502,1577.5,1577.4,3.80881]
[1744794176095,0.00952502,1577.5,1577.4,8.59081]
[1744794176301,1.27745502,1577.5,1577.3,40.8]
[1744794176501,0.00952502,1577.5,1577.4,1.26801]
[1744794176695,1.27745502,1577.5,1577.4,2.96101]
[1744794177394,0.00952502,1577.5,1577.4,2.96101]
[1744794177901,1.27745502,1577.5,1577.4,2.96101]
[1744794178106,0.00952502,1577.5,1577.4,2.96101]
[1744794179205,1.27745502,1577.5,1577.4,2.96101]
[1744794179503,1.27745502,1577.5,1577.4,1.26801]
[1744794179504,1.27750502,1577.5,1577.4,1.26801]
[1744794179805,1.26801,1577.4,1577.3,48.54634]
[1744794180001,2.94611,1577.4,1577.3,46.85004]
[1744794180803,2.94611,1577.4,1577.3,48.59034]
[1744794182004,0.00952502,1577.5,1577.4,1.26801]
[1744794182203,0.00952502,1577.5,1577.4,3.00831]
[1744794182406,0.00952502,1577.5,1577.4,8.00831]
[1744794183606,1.26766,1577.9,1577.8,1.26765]
[1744794184213,3.02406,1577.9,1577.8,1.26765]
[1744794185307,1.26768,1577.8,1577.7,1.26774]
[1744794185502,1.26783,1577.7,1577.6,1.26783]
[1744794186003,3.02415,1577.8,1577.7,1.26776]
[1744794186199,3.02415,1577.8,1577.5,6.52147]
[1744794186200,1.26776,1577.7,1577.6,2.93436]
[1744794186402,3.02416,1577.7,1577.6,2.93436]
[1744794187014,3.05997834,1577.7,1577.6,2.93436]
[1744794187409,1.79221834,1577.7,1577.6,2.93436]
[1744794187611,0.03581834,1577.7,1577.6,10.91816]
[1744794188105,1.30357834,1577.7,1577.6,6.04376]
[1744794188308,1.26793,1577.5,1577.4,9.25176]
[1744794188610,1.26809,1577.3,1577.2,1.27768502]
[1744794188809,1.26809,1577.3,1577.2,0.00952502]
[1744794189110,6.26809,1577.3,1577.2,0.00952502]
[1744794189308,1.26825,1577.1,1577.0,1.26829]
[1744794189513,8.25625255,1577.3,1576.9,1.26838]
[1744794189514,1.26839,1577.0,1576.9,1.26838]
[1744794189722,1.26829,1577.1,1577.0,1.26829]
[1744794190012,1.7331,1577.1,1577.0,42.06829]
[1744794190402,1.81900255,1577.1,1577.0,42.06829]
[1744794191316,3.08725255,1577.1,1577.0,42.06829]
[1744794192118,3.08725255,1577.1,1577.0,40.8]
[1744794192409,1.81900255,1577.1,1577.0,42.06833]
[1744794192717,1.81900255,1577.1,1577.0,43.82263]
[1744794194210,0.08590255,1577.1,1577.0,47.03043]
[1744794195215,0.08590255,1577.1,1577.0,43.82263]
[1744794195414,0.08590255,1577.1,1576.9,0.00952502]
[1744794195717,2.92993,1577.0,1576.9,0.00952502]
[1744794195915,2.92993,1577.0,1576.9,40.80952502]
[1744794196216,2.92993,1577.0,1576.9,42.07793502]
[1744794196410,3.01583255,1577.0,1576.9,42.07793502]
[1744794197110,2.92993,1577.0,1576.9,42.07793502]
[1744794197312,3.03581655,1577.0,1576.9,42.07793502]
[1744794197510,8.03581655,1577.0,1576.9,0.00952502]
[1744794197703,1.26881,1576.4,1576.3,8.28659023]
[1744794198104,6.26881,1576.4,1576.3,8.28659023]
[1744794198308,8.87069655,1576.4,1576.3,8.28659023]
[1744794198812,3.87069655,1576.4,1576.3,9.55548023]
[1744794199220,1.76748655,1576.4,1576.3,1.26889]
[1744794199419,0.10588655,1576.4,1576.3,1.26889]
[1744794200316,1.26889,1576.3,1576.2,3.01244502]
[1744794200516,12.09478,1576.6,1576.5,1.26873]
[1744794200718,10.8261,1576.6,1576.5,1.12708754]
[1744794200919,12.09475,1576.6,1576.5,1.12708754]
[1744794201417,10.8261,1576.6,1576.5,1.12708754]
[1744794201619,10.85626264,1576.6,1576.5,1.12708754]
[1744794201820,12.12491264,1576.6,1576.5,1.12708754]
[1744794202322,0.03016264,1576.6,1576.5,1.12708754]
[1744794202617,0.03016264,1576.6,1576.5,3.65868754]
[1744794203720,0.03016264,1576.6,1576.5,8.65868754]
[1744794204118,0.00952502,1576.7,1576.6,1.26865]
[1744794204312,0.00952502,1576.7,1576.6,5.34515]
[1744794204811,0.8147,1577.2,1576.7,3.17126]
[1744794204812,2.08292,1577.2,1576.7,3.17126]
[1744794205011,2.90796,1577.1,1577.0,1.26833]
[1744794205513,1.6397,1577.1,1577.0,1.26833]
[1744794205715,1.26834,1577.0,1576.8,5.64423]
[1744794205914,2.90801,1577.1,1577.0,1.26833]
[1744794206115,2.91753502,1577.1,1577.0,1.26833]
[1744794206318,1.64922502,1577.1,1577.0,1.26833]
[1744794206725,2.91747502,1577.1,1577.0,1.26833]
[1744794208523,2.91747502,1577.1,1576.9,1.6024]
[1744794208524,1.64922502,1577.1,1576.8,0.8706]
[1744794208719,1.26849,1576.8,1576.7,2.8798]
[1744794208925,1.26848,1576.9,1576.8,1.26846]
[1744794209126,3.75698,1576.9,1576.8,1.26846]
[1744794209325,1.26852,1576.8,1576.7,1.2685]
[1744794209527,2.93242,1576.8,1576.7,1.2685]
[1744794210326,1.26857,1576.7,1576.6,1.26862]
[1744794210520,2.93247,1576.7,1576.6,1.26862]
[1744794211230,3.01837255,1576.7,1576.6,1.26862]
[1744794211523,1.74980255,1576.7,1576.6,1.26862]
[1744794211828,0.08590255,1576.7,1576.6,9.47642]
[1744794212221,1.63352502,1577.1,1577.0,1.26833]
[1744794212521,2.90177502,1577.1,1577.0,1.26833]
[1744794213323,1.63352502,1577.1,1577.0,1.26833]
[1744794213529,0.00952502,1577.1,1577.0,1.26833]
[1744794213925,0.00952502,1577.1,1577.0,2.09153]
[1744794214124,0.00952502,1577.1,1577.0,5.29933]
[1744794215929,0.00952502,1577.1,1576.9,1.26834]
[1744794215930,1.26833,1577.0,1576.9,1.26834]
[1744794216427,1.65542502,1577.1,1576.8,9.6731]
[1744794216428,2.92369502,1577.1,1577.0,1.26833]
[1744794216621,1.65542502,1577.1,1577.0,1.26833]
[1744794216823,1.65542502,1577.1,1576.9,1.26834]
[1744794217022,2.92374502,1577.1,1577.0,1.26833]
[1744794217427,1.26833,1577.0,1576.9,2.97406]
[1744794217628,3.02173,1577.0,1576.9,2.97406]
[1744794221132,1.26841,1576.9,1576.8,4.47623]
[1744794221332,3.89271,1576.9,1576.8,4.47623]
[1744794222031,3.89271,1576.9,1576.7,3.3902]
[1744794222236,2.12821,1576.9,1576.8,1.26849]
[1744794223437,1.26864,1576.7,1576.6,1.26859]
[1744794224031,1.26873,1576.6,1576.5,4.47648]
[1744794224337,0.817,1576.6,1576.5,1.26868]
[1744794224534,0.817,1576.6,1576.5,2.89028]
[1744794225534,2.08565,1576.6,1576.5,2.89028]
[1744794226037,0.817,1576.6,1576.5,2.89028]
[1744794226234,0.8099,1576.8,1576.7,1.26857]
[1744794226425,3.2078,1576.9,1576.8,1.26849]
[1744794226426,5.29324,1576.9,1576.8,1.26849]
[1744794226632,1.26849,1576.8,1576.7,3.01491]
[1744794227640,1.26865,1576.6,1576.5,3.2078]
[1744794227831,1.26863,1576.7,1576.6,1.26859]
[1744794229634,3.17123,1576.8,1576.5,1.7464]
[1744794229942,1.26872,1576.6,1576.5,1.26867]
[1744794230142,1.26863,1576.7,1576.6,1.26861]
[1744794232339,1.26855,1576.8,1576.7,1.26849]
[1744794232640,0.817,1576.9,1576.8,1.26849]
[1744794232844,2.08541,1576.9,1576.8,2.92469]
[1744794233044,1.26849,1576.8,1576.7,2.9854]
[1744794233242,1.26849,1576.8,1576.7,1.2685]
[1744794233744,2.08546,1576.9,1576.8,1.26849]
[1744794233945,0.817,1576.9,1576.8,2.92469]
[1744794234442,2.08541,1576.9,1576.8,2.92469]
[1744794236245,2.17131255,1576.9,1576.8,2.92469]
[1744794237039,1.26849,1576.8,1576.7,2.98389]
[1744794237346,1.35439255,1576.8,1576.7,2.98389]
[1744794237550,1.35439255,1576.8,1576.7,4.71339]
[1744794239446,0.08590255,1576.8,1576.7,4.71339]
[1744794239842,1.35439255,1576.8,1576.7,4.71339]
[1744794240045,0.08590255,1576.8,1576.7,4.71339]
[1744794241649,1.35439255,1576.8,1576.7,4.71339]
[1744794242345,3.06299255,1576.8,1576.7,4.71339]
[1744794244148,1.79450255,1576.8,1576.7,4.71339]
[1744794244349,0.08590255,1576.8,1576.7,4.71339]
[1744794244543,1.35439255,1576.8,1576.7,4.71339]
[1744794244845,0.08590255,1576.8,1576.7,4.71339]
[1744794245046,6.3778,1577.5,1577.3,1.26802]
[1744794245241,2.10349,1577.4,1577.3,1.26802]
[1744794245442,1.26817,1577.3,1577.2,1.26811]
[1744794245647,1.26817,1577.3,1577.2,43.69171]
[1744794245648,2.89887,1577.3,1577.2,43.69171]
[1744794246552,2.89887,1577.3,1577.2,42.06811]
[1744794246848,2.89887,1577.3,1577.1,0.00952502]
[1744794246849,1.26817,1577.2,1577.1,0.00952502]
[1744794247043,1.26845,1576.9,1576.8,1.26838]
[1744794247350,3.17068,1577.1,1576.9,1.26835]
[1744794247351,1.2684,1577.0,1576.9,1.26835]
[1744794247547,3.0154,1577.0,1576.9,1.26835]
[1744794247854,1.26841,1576.9,1576.8,43.69209]
[1744794248046,3.01541,1576.9,1576.8,42.06849]
[1744794249251,3.01541,1576.9,1576.8,40.8]
[1744794250356,3.01541,1576.9,1576.8,42.06849]
[1744794250656,3.01541,1576.9,1576.8,40.8]
[1744794251354,3.01541,1576.9,1576.8,42.06849]
[1744794251555,3.01541,1576.9,1576.8,40.8]
[1744794252056,3.01541,1576.9,1576.7,2.89423502]
[1744794252057,1.26849,1576.8,1576.7,0.00952502]
[1744794252251,4.63899,1576.8,1576.7,0.00952502]
[1744794252648,1.26881,1576.4,1576.3,3.2078]
[1744794252951,1.26885,1576.4,1576.3,1.26881]
[1744794253149,1.26881,1576.5,1576.4,1.26877]
[1744794253345,1.6424,1576.8,1576.6,1.26865]
[1744794253550,4.63026,1576.8,1576.7,1.26857]
[1744794253952,1.26857,1576.7,1576.6,3.72039502]
[1744794254156,4.63026,1576.8,1576.7,1.26857]
[1744794254357,3.79066,1576.8,1576.7,1.26857]
[1744794254658,2.98786,1576.8,1576.7,1.26857]
[1744794254860,1.26844,1576.9,1576.8,1.26849]
[1744794255563,3.84721502,1577.0,1576.9,1.26841]
[1744794255857,1.26845,1576.9,1576.8,1.26841]
[1744794256157,3.84720502,1577.0,1576.9,1.26841]
[1744794257257,1.72882502,1577.0,1576.9,1.26841]
[1744794257551,0.00952502,1577.0,1576.9,1.26841]
[1744794257752,0.00952502,1577.0,1576.9,6.26841]
[1744794258053,1.26806,1577.4,1577.3,1.26809]
[1744794258252,1.26825,1577.1,1577.0,2.10419]
[1744794258660,1.26823,1577.2,1577.1,1.26824]
[1744794258959,1.6305,1577.3,1577.0,41.6359]
[1744794259150,1.26823,1577.2,1577.1,1.26823]
[1744794259351,1.35413255,1577.2,1577.1,1.26823]
[1744794259552,1.26825,1577.1,1577.0,42.90417]
[1744794259752,1.35413255,1577.2,1577.1,1.26825]
[1744794260660,1.26825,1577.1,1577.0,40.8]
[1744794260962,4.61445,1577.1,1577.0,40.8]
[1744794261560,4.70035255,1577.1,1577.0,40.8]
[1744794261763,1.26833,1577.0,1576.9,1.2684]
[1744794262065,2.90623,1577.0,1576.9,1.2684]
[1744794262366,2.90623,1577.0,1576.9,42.0684]
[1744794262558,2.99213255,1577.0,1576.9,42.0684]
[1744794262959,2.99213255,1577.0,1576.9,40.8]
[1744794263260,2.99213255,1577.0,1576.9,42.06841]
[1744794263870,1.35423255,1577.0,1576.9,42.06841]
[1744794264569,0.08590255,1577.0,1576.9,42.06841]
[1744794264764,1.35423255,1577.0,1576.9,42.06841]
[1744794265364,1.35423255,1577.0,1576.9,40.8]
[1744794265365,3.04143255,1577.0,1576.9,40.8]
[1744794265667,3.04143255,1577.0,1576.9,42.06841]
[1744794265969,0.08590255,1577.0,1576.9,47.06841]
[1744794266568,0.08590255,1577.0,1576.9,42.06841]
[1744794266970,1.35423255,1577.0,1576.9,42.06841]
[1744794267365,2.21043255,1577.0,1576.9,1.26841]
[1744794267973,1.26841,1576.9,1576.8,42.94804]
[1744794268174,2.86731,1576.9,1576.8,42.94804]
[1744794268364,2.86731,1576.9,1576.8,2.14804]
[1744794268564,2.95321255,1576.9,1576.8,2.14804]
[1744794268761,2.95321255,1576.9,1576.8,42.94804]
[1744794270671,6.68480255,1576.9,1576.2,8.28659023]
[1744794270871,1.26889,1576.3,1576.2,9.55556023]
[1744794271069,1.26889,1576.3,1576.2,50.35556023]
[1744794271675,1.35479255,1576.3,1576.2,52.07616023]
[1744794271876,0.08590255,1576.3,1576.2,52.07616023]
[1744794272574,0.00952502,1576.4,1576.3,1.26889]
[1744794272774,0.00952502,1576.4,1576.3,7.07829]
[1744794278178,0.00952502,1576.4,1576.3,47.87829]
[1744794279285,1.27833502,1576.4,1576.3,44.0078]
[1744794279978,2.98853502,1576.4,1576.3,45.27669]
[1744794281579,3.07443755,1576.4,1576.3,45.27669]
[1744794283389,3.07443755,1576.4,1576.3,44.0078]
[1744794283587,3.07443755,1576.4,1576.3,45.27669]
[1744794283783,3.07443755,1576.4,1576.3,44.0078]
[1744794284085,1.26897,1576.2,1576.1,1.27851502]
[1744794284481,2.5385,1576.3,1576.2,1.26897]
[1744794284681,0.08590253,1576.3,1576.2,2.96297]
[1744794284884,0.08590253,1576.3,1576.2,7.93637]
[1744794286388,0.08590253,1576.3,1576.2,48.73637]
[1744794292291,1.35479253,1576.3,1576.2,48.73637]
[1744794292487,0.08590253,1576.3,1576.2,48.73637]
[1744794293392,1.35479253,1576.3,1576.2,48.73637]
[1744794293694,1.35479253,1576.3,1576.2,45.52857]
[1744794293888,1.35479253,1576.3,1576.2,42.91297]
[1744794294295,3.09629253,1576.3,1576.2,42.91297]
[1744794294487,1.82740253,1576.3,1576.2,42.91297]
[1744794294687,3.11148037,1576.3,1576.2,44.51577]
[1744794294894,1.84259037,1576.3,1576.2,44.51577]
[1744794295594,3.11148037,1576.3,1576.2,44.51577]
[1744794295784,3.12147237,1576.3,1576.2,44.51577]
[1744794297292,1.85258237,1576.3,1576.2,44.51577]
[1744794297694,1.37997237,1576.3,1576.2,3.71577]
[1744794297893,3.08917237,1576.3,1576.2,3.71577]
[1744794298298,1.82028237,1576.3,1576.2,3.71577]
[1744794298503,3.08917237,1576.3,1576.2,3.71577]
[1744794298795,0.11108237,1576.3,1576.2,6.92357]
[1744794298993,8.31888237,1576.3,1576.1,0.00952502]
[1744794299201,1.26929,1575.8,1575.7,6.12921]
[1744794299500,3.17264,1576.1,1575.6,3.17359]
[1744794299501,1.26937,1575.7,1575.6,2.86539]
[1744794299695,2.95367,1575.7,1575.6,2.86539]
[1744794299896,3.06475237,1575.7,1575.6,2.86539]
[1744794300198,3.06475237,1575.7,1575.6,43.66539]
[1744794300694,1.26945,1575.6,1575.5,2.08879502]
[1744794300896,3.06483237,1575.6,1575.5,1.27899502]
[1744794301291,3.06483237,1575.6,1575.5,42.07899502]
[1744794301996,1.79538237,1575.6,1575.5,42.07899502]
[1744794302198,3.06483237,1575.6,1575.5,40.80952502]
[1744794302700,3.06483237,1575.6,1575.5,42.07905502]
[1744794303593,3.06483237,1575.6,1575.5,40.80952502]
[1744794303798,1.26978,1575.2,1575.1,1.2698]
[1744794303999,1.26986,1575.1,1575.0,2.872]
[1744794304199,1.26994,1575.0,1574.9,50.59199241]
[1744794304502,1.26994,1575.0,1574.9,49.32203241]
[1744794304701,7.86554,1575.0,1574.9,8.52203241]
[1744794304888,1.27002,1574.9,1574.8,0.00952502]
[1744794305093,2.97670237,1574.9,1574.8,0.00952502]
[1744794305297,7.97670237,1574.9,1574.8,0.00952502]
[1744794305801,2.97670237,1574.9,1574.8,0.00952502]
[1744794306000,0.11108237,1574.9,1574.8,1.27962502]
[1744794306195,0.11108237,1574.9,1574.8,5.32512502]
[1744794306596,0.11108237,1574.9,1574.8,6.98032502]
[1744794307301,0.11108237,1574.9,1574.8,3.77252502]
[1744794307504,0.11108237,1574.9,1574.8,6.98032502]
[1744794308795,0.11108237,1574.9,1574.8,42.07962502]
[1744794309694,1.75118237,1574.9,1574.8,43.75512502]
[1744794309894,1.75118237,1574.9,1574.8,46.96292502]
[1744794310095,1.75118237,1574.9,1574.8,44.58902502]
[1744794311098,1.75118237,1574.9,1574.8,47.79682502]
[1744794311298,0.11108237,1574.9,1574.8,47.79682502]
[1744794311694,1.38110237,1574.9,1574.8,40.80952502]
[1744794311894,1.38110237,1574.9,1574.8,0.00952502]
[1744794312106,3.14270237,1574.9,1574.8,1.27962502]
[1744794313001,3.14270237,1574.9,1574.8,0.00952502]
[1744794313202,3.14270237,1574.9,1574.8,1.27962502]
[1744794314507,3.14270237,1574.9,1574.8,0.00952502]
[1744794315806,3.14270237,1574.9,1574.8,1.27962502]
[1744794316703,0.11108237,1574.9,1574.8,4.48742502]
[1744794317004,0.11108237,1574.9,1574.8,7.81152502]
[1744794317208,0.00952502,1575.1,1575.0,1.26994]
[1744794317410,0.00952502,1575.1,1575.0,4.47774]
[1744794317603,0.00952502,1575.1,1575.0,9.47774]
[1744794318006,2.10787,1575.7,1575.6,1.26945]
[1744794318206,1.6346,1575.7,1575.6,1.26945]
[1744794318408,0.852,1575.8,1575.7,1.26937]
[1744794318610,2.12129,1575.8,1575.7,1.26937]
[1744794318911,2.4866,1575.8,1575.7,1.26937]
[1744794319719,3.75589,1575.8,1575.7,1.26937]
[1744794320011,2.4866,1575.8,1575.7,1.26937]
[1744794320205,1.6346,1575.8,1575.7,1.26937]
[1744794320402,1.6346,1575.8,1575.7,6.24377]
[1744794320811,0.00952502,1575.9,1575.8,1.26929]
[1744794321101,1.68972502,1575.9,1575.8,1.26929]
[1744794321302,0.00952502,1575.9,1575.8,1.26929]
[1744794321500,0.00952502,1575.9,1575.8,2.08319]
[1744794322307,1.27873502,1575.9,1575.8,2.08319]
[1744794322507,0.00952502,1575.9,1575.8,2.08319]
[1744794322907,0.00952502,1575.9,1575.8,2.93879]
[1744794325010,0.00952502,1575.9,1575.8,4.60369]
[1744794325402,0.00952502,1575.9,1575.8,9.60369]
[1744794325605,0.00952502,1575.9,1575.8,14.36469]
[1744794327014,0.00952502,1575.9,1575.8,55.16469]
[1744794328209,1.7001,1576.2,1576.1,1.26905]
[1744794328714,0.8222,1576.3,1576.2,1.26897]
[1744794329408,1.26856,1576.8,1576.7,1.26857]
[1744794329707,3.2078,1576.9,1576.8,1.26849]
[1744794329912,0.00952502,1576.9,1576.8,45.27629]
[1744794330112,1.27793502,1576.9,1576.8,40.8]
[1744794330315,1.27793502,1576.9,1576.8,42.06849]
[1744794331206,0.00952502,1576.9,1576.8,42.06849]
[1744794332008,3.00293502,1576.9,1576.8,40.8]
[1744794332414,3.00293502,1576.9,1576.8,42.06849]
[1744794332919,1.26849,1576.8,1576.7,3.0217]
[1744794333216,3.00649,1576.8,1576.7,3.0217]
[1744794333407,3.00649,1576.8,1576.7,43.8217]
[1744794334617,1.738,1576.8,1576.7,43.8217]
[1744794334813,1.738,1576.8,1576.6,0.00952502]
[1744794335011,2.97707,1576.7,1576.6,0.00952502]
[1744794335413,11.18487,1576.7,1576.6,0.00952502]
[1744794335621,22.19534,1576.7,1575.9,1.26914]
[1744794335913,1.26913,1576.0,1575.9,40.8]
[1744794336114,6.38047,1576.1,1575.7,3.2078]
[1744794336418,1.26945,1575.6,1575.5,8.28659023]
[1744794336915,6.26945,1575.6,1575.5,8.28659023]
[1744794337115,8.45760811,1575.6,1575.5,8.28659023]
[1744794337313,1.26953,1575.5,1575.4,0.00952502]
[1744794337618,3.80283,1575.5,1575.4,0.00952502]
[1744794337820,8.80283,1575.5,1575.4,0.00952502]
[1744794338622,3.80283,1575.5,1575.4,0.00952502]
[1744794339408,1.6815,1575.5,1575.4,1.27914502]
[1744794339722,2.87172,1575.7,1575.5,1.26947]
[1744794339912,2.87172,1575.7,1575.6,1.26945]
[1744794340115,1.26945,1575.6,1575.5,2.87507]
[1744794340423,1.26945,1575.6,1575.5,1.6056]
[1744794341121,1.26945,1575.6,1575.5,2.87513]
[1744794341721,1.26945,1575.6,1575.5,1.6056]
[1744794341921,1.26945,1575.6,1575.5,2.87513]
[1744794342823,1.6023,1575.7,1575.5,2.87513]
[1744794343026,1.26945,1575.6,1575.5,2.87513]
[1744794343912,1.26945,1575.6,1575.5,1.6056]
[1744794344119,1.26945,1575.6,1575.5,2.87513]
[1744794345925,1.26945,1575.6,1575.5,1.26953]
[1744794346323,1.26953,1575.5,1575.4,1.60632502]
[1744794346523,2.88203,1575.5,1575.4,0.00952502]
[1744794347022,1.6125,1575.5,1575.4,42.07914502]
[1744794347215,4.754,1575.7,1575.6,1.26945]
[1744794347216,7.63594,1575.7,1575.6,1.26945]
[1744794347417,2.88194,1575.7,1575.6,1.26945]
[1744794347628,1.26945,1575.6,1575.5,2.86627]
[1744794347925,1.26945,1575.6,1575.5,1.5968]
[1744794347926,2.87235,1575.6,1575.5,1.5968]
[1744794348127,1.26953,1575.5,1575.4,40.80952502]
[1744794348328,2.87243,1575.5,1575.4,0.00952502]
[1744794348522,7.87243,1575.5,1575.4,0.00952502]
[1744794348720,11.08023,1575.5,1575.4,0.00952502]
[1744794350027,1.26994,1575.0,1574.9,3.2078]
[1744794350225,1.26997,1575.0,1574.9,40.8]
[1744794350415,2.87282,1575.1,1575.0,1.2699]
[1744794350619,1.26983,1575.2,1575.1,1.26986]
[1744794350819,2.87265,1575.3,1575.2,1.26978]
[1744794351019,1.26982,1575.2,1575.1,1.26979]
[1744794351229,1.26982,1575.2,1575.1,1.27931502]
[1744794351430,2.87266,1575.3,1575.2,1.26978]
[1744794352032,1.6029,1575.3,1575.2,1.26978]
[1744794352329,2.8726,1575.3,1575.2,1.26978]
[1744794352921,1.27920502,1575.4,1575.3,1.2697]
[1744794353927,1.26975,1575.3,1575.2,1.26972]
[1744794354122,1.26978,1575.2,1575.1,2.11903502]
[1744794354830,2.90713,1575.3,1575.2,1.26978]
[1744794355330,1.26978,1575.2,1575.1,2.11903502]
[1744794355525,2.90718,1575.2,1575.1,2.11903502]
[1744794355719,2.90718,1575.2,1575.1,0.84922502]
[1744794356029,2.90718,1575.2,1575.1,0.00952502]
[1744794357231,2.90718,1575.2,1575.1,1.27938502]
[1744794357430,2.90718,1575.2,1575.1,0.00952502]
[1744794358835,2.90718,1575.2,1575.1,1.27938502]
[1744794360232,4.76452502,1575.4,1575.1,0.00952502]
[1744794360435,0.00952502,1575.4,1575.3,4.4775]
[1744794360632,1.26934,1575.8,1575.7,1.26931]
[1744794361031,2.90427,1575.9,1575.8,1.26929]
[1744794361528,1.2691,1576.1,1576.0,1.26905]
[1744794361935,1.26913,1576.0,1575.9,3.78025]
[1744794362129,2.91350502,1576.2,1576.1,1.26905]
[1744794362329,0.00952502,1576.2,1576.1,1.26905]
[1744794362536,0.00952502,1576.2,1576.1,4.47685]
[1744794362735,0.00952502,1576.2,1576.1,9.47685]
[1744794364043,0.00952502,1576.2,1575.9,14.46446502]
[1744794364238,0.00952502,1576.2,1576.1,1.26905]
[1744794364640,0.00952502,1576.2,1576.1,45.27685]
[1744794364829,1.27849502,1576.2,1576.1,44.0078]
[1744794365033,1.26913,1576.1,1575.9,9.34679502]
[1744794365235,1.26913,1576.0,1575.9,9.34679502]
[1744794365543,1.26913,1576.0,1575.9,50.14679502]
[1744794366033,1.26913,1576.0,1575.9,48.51779502]
[1744794366232,1.26913,1576.0,1575.9,43.76779502]
[1744794366429,1.26913,1576.0,1575.9,0.00952502]
[1744794367037,1.26913,1576.0,1575.9,40.80952502]
[1744794367341,3.17307,1575.9,1575.5,1.26948]
[1744794367539,2.5905,1575.9,1575.6,1.2694]
[1744794367840,1.26937,1575.7,1575.6,1.2694]
[1744794368733,2.5905,1575.9,1575.6,3.2078]
[1744794368941,2.99888,1575.9,1575.8,1.26929]
[1744794369141,2.99888,1575.9,1575.7,1.6351]